{"text_format":"1","workbook":"xlsx","n_sheets":8,"sheets":["COMPLETE ME FIRST","Exception Guidance","Exceptional case","Request Guidance","First time request","Top Up","Providers","Summary"],"not_rendered":{"charts":0,"images":1,"macros":1,"external_links":1,"defined_names":17,"comments":0,"pivot_tables":0},"unopened":[],"bounds":{"document_bytes":16777216,"sheet_cells":100000,"rows_first":2000,"rows_last":500,"rows_between":2000,"halvings":0,"cell_chars":16384,"cell_head_chars":4096},"cells_cut":0,"cells_raw":0,"read":"whole","date_system":"1900"}

{"sheet":"COMPLETE ME FIRST","index":0,"n_rows":26,"n_cols":19,"rows_kept":26,"cut":false,"hidden":false,"merged":[[25,3,25,9],[2,3,2,10],[3,12,4,12],[19,3,19,9],[23,3,23,9],[7,1,7,8],[9,1,9,12],[10,1,10,12],[11,1,11,12],[12,1,12,12],[13,1,13,12],[14,1,14,12],[15,1,15,12],[16,1,16,12],[3,1,3,11]]}
[]
[]
[]
[null,"ASF peformance management requests form - 2024 to 2025",null,null,null,null,null,null,null,null,null,null,{"$f":"IF(COUNTIFS(M18:M62,\"✔\")=COUNTA(M18:M62),\"Complete\",\"Incomplete\")","v":"Incomplete"}]
[null,null,null,null,null,null,null,null,null,null,null,null,{"$error":"#REF!"}]
[null,"Request"]
[null,"Please read the guidance page(s) before completing this form. Please complete ALL of the cells highlighted yellow."]
[null,"Adult skills fund: funding and performance management rules 2024 to 2025 - GOV.UK (www.gov.uk)"]
[null,"General Information"]
[null,"Please read ESFA funded adult skills fund (ASF): funding and performance management rules before completing this form (link above)."]
[null,"You must complete details in this sheet first, all sheets will be blank until completed."]
[null,"To use this form you will need to enable the macros. This will enable you to send the completed form with ease. "]
[null,"This form is to be completed and returned by 5pm on 4 December 2024.  This form allows you to submit an exceptional case for growth, exemption from an auto reduction, a first time request (for providers with an ASF grant allocation) or top up request if below £45,000 to the moderation panel for consideration. We explain how to return the template within the guidance sheets."]
[null,"You must complete ALL relevant sections of the form. We will not accept if incomplete. "]
[null,"Only information within this sheet will be considered.  We will not accept any information outside of this form. We will contact you if we require further information. "]
[null,"Complete the information below first, this will help us to understand the reason for your request, it will also enable the necessary boxes and information you need to complete."]
[null,"If a request option is not available to you once you select your provider name, it will be because you are not eligible for that request. "]
[null,"A new form will need completing for each separate request."]
[null,null,null,null,null,null,null,null,null,null,null,null,null,null,null,"Grant",null,"CfS"]
[null,null,"Provider Name:",null,null,null,null,null,null,null,null,null,{"$f":"IF(ISBLANK(D20), \"✖\", \"✔\")","v":"✖"},null,null,"ESFA funded level 3 free courses for jobs",null,"ESFA funded ASF","ESFA funded level 3 free courses for jobs"]
[null,null,"Legal Name",null,null,null,null,null,null,null,null,null,null,null,null,"New request",null,"Exception for growth","Exception for growth"]
[null,null,"UK Provider Registration Number (UKPRN):",{"$f":"IFERROR(VLOOKUP(D20,Providers!A:B,2,FALSE),\"\")","v":""},null,{"$f":"IFERROR(VLOOKUP(D20,Providers!$J$1:$L$595,3,FALSE),\"\")","v":""},null,null,null,null,null,null,null,null,null,"Top Up if below £45,000",null,"Exemption from auto reduction","Exemption from auto reduction"]
[null,null,null,null,null,null,null,null,null,null,null,null,null,null,null,"Exception for growth"]
[null,null,"Funding stream",null,null,null,null,null,null,null,null,null,{"$f":"IF(ISBLANK(D24), \"✖\", \"✔\")","v":"✖"}]
[]
[null,null,"Request",null,null,null,null,null,null,null,null,null,{"$f":"IF(ISBLANK(D26), \"✖\", \"✔\")","v":"✖"}]

{"sheet":"Exception Guidance","index":1,"n_rows":51,"n_cols":3,"rows_kept":51,"cut":false,"hidden":false,"merged":[[11,1,11,2],[12,1,12,2],[26,1,26,2],[28,1,28,2],[30,1,30,2],[20,1,20,2],[22,1,22,2],[23,1,23,2],[24,1,24,2],[25,1,25,2],[16,1,16,2],[17,1,17,2],[18,1,18,2],[37,1,37,2],[39,1,39,2],[34,1,34,2],[36,1,36,2],[14,1,14,2],[32,1,32,2],[35,1,35,7]]}
[]
[]
[]
[]
[]
[]
[]
[]
[]
[]
[]
[null,"Post 19 - Exceptional request guidance"]
[null,"Funding year 2024 to 2025"]
[]
[null,"When to submit a case"]
[]
[null,"You need to complete this form if there have been exceptional circumstances at the performance management review for "]
[null,"   - why you do not meet the criteria for increases or"]
[null,"   - why you should not receive an automated reduction"]
[]
[null,"Exceptional requests are to review whether you are in scope for an increase or reduction and if accepted you will be subject to the formulaic calculation. We will not accept requests for additional funding outside of the formulaic approach.  We will not accept any requests received after the 5pm on 4 December 2024 deadline or requests submitted to a different email address.  "]
[]
[null,"You must only complete the request form for an exception if one of the following criteria puts you out of scope for an increase:"]
[null,"   - you are outside of the tolerance for an increase at the review point"]
[null,"   - you do not have a good track record (as detailed in the funding and performance management rules 2024 to 2025)"]
[null,"   - you are in formal intervention with the ESFA or under additional conditions of funding or additional contractual obligation"]
[null,"   - if you have experienced a significant data error that has affected your ILR"]
[]
[null,"You must complete the form as fully as possible, detailing errors, supporting information, mitigation plans."]
[]
[null,"Please do not include any personal or sensitive data about your students when submitting your case. Personal data is information relating to a living individual who is, or can be, identified from the data provided. Personal data can be information about the individual, their families or circumstances. This may include names, contact details, gender or date of birth."]
[]
[null,"Returning the form"]
[]
[null,"Once the form shows the completed status, please submit the form via the customer help portal, creating a new enquiry, in which you can attach the form."]
[null,"Customer help portal (education.gov.uk)"]
[null,"Ensure to title the enquiry Post 19 Allocations - exceptional request"]
[null,"If you have questions after reading this information, or if there’s anything else you need help with, you can find more support in our customer help centre."]
[]
[null,"Customer help centre (education.gov.uk)"]
[]
[null,"Completing the form"]
[null,"Field","Description"]
[null,"Completion Status","This box stays INCOMPLETE until all the yellow boxes are complete. Once all the required yellow boxes are complete, it will change to COMPLETE. We will not accept incomplete forms."]
[null,"Provider Name","This is automatically completed with input on the Complete me first page. Please ensure this displays your provider name.\n"]
[null,"UKPRN","The UK Provider Registration Number as it appears on the UK Register of Learning Providers (UKRLP) will automatically populate once you select your provider name on the Complete me first page.\n"]
[null,"Reason for request","Please select reason you should be considered for an exception. "]
[null,"Funding Stream","This is automatically completed with input on the Complete me first page. This should be the funding stream you wish to request an exception to the performance management rules for. A separate form should be completed for each funding stream if you wish to raise more than one case."]
[null,"Supporting Information Text Box","Please provide any supporting comments for your request and what mitigations you have in place. There is a limit of the amount of characters that can be used."]
[null,"Authority tick box","Please tick to confirm that you have the authority to act on behalf of the applicant organisation named in this form."]
[null,"Request completed by","Please ensure you enter your:\nName\nPosition in Organisation\nDate of Request"]

{"sheet":"Exceptional case","index":2,"n_rows":67,"n_cols":10,"rows_kept":67,"cut":false,"hidden":false,"merged":[[62,1,62,6],[63,1,63,7],[65,1,65,8],[66,1,66,5],[60,2,60,4],[58,2,58,7],[24,1,24,8],[2,9,3,9],[7,2,7,7],[9,2,9,3],[56,2,56,7],[19,1,19,2],[31,1,49,7],[2,1,2,7],[13,1,13,2],[13,3,13,7],[15,1,15,2],[15,3,15,7],[18,1,18,2]]}
[]
[null,null,null,null,null,null,null,null,null,"Completion status"]
[null,"Exception case - Adult skills fund and ESFA funded level 3 free courses for jobs ",null,null,null,null,null,null,null,{"$f":"IF(OR('COMPLETE ME FIRST'!D26:D26=\"Exemption from auto reduction\",'COMPLETE ME FIRST'!D26:D26=\"Exception for growth\"),IF(COUNTIFS(J5:J61,\"✔\")=COUNTA(J5:J61),\"Complete\",\"Incomplete\"),\"NOT REQUIRED\")","v":"NOT REQUIRED"}]
[null,"Please read the guidance page before completing this form. Please complete ALL of the cells highlighted yellow."]
[]
[null,"Section 1. provider details"]
[]
[null,"Provider name",{"$f":"'COMPLETE ME FIRST'!D20:D20","v":0},null,null,null,null,null,null,{"$f":"IF(C8=0, \"✖\", \"✔\")","v":"✖"}]
[]
[null,"UKPRN",{"$f":"IFERROR(VLOOKUP(C8,Providers!A:B,2,FALSE),\"\")","v":""}]
[]
[null,"Section 2. exceptional request"]
[]
[null,"Reason for request",null,null,null,null,null,null,null,{"$f":"IF(ISBLANK(D14), \"✖\", \"✔\")","v":"✖"}]
[]
[null,"Funding stream",null,{"$f":"'COMPLETE ME FIRST'!D24:D24","v":0},null,null,null,null,null,{"$f":"IF(D16=0, \"✖\", \"✔\")","v":"✖"}]
[]
[]
[null,null,null,"Current 2020/21 allocation","Increase requested","Revised 2020/21 allocation requested"]
[null,"2020 to 2021 allocation",null,null,null,{"$f":"D20+E20","v":0}]
[null,"We may take your increase request into consideration, however we will use your data to calculate any increases. We will use the information within section 3 to accept or reject your exception request"]
[]
[null,"Section 3. supporting information"]
[]
[null,"Please briefly describe the reason for your request.  We will not accept any information outside of this form.\n We will contact you if we require further information. Please include evidence of:"]
[null,null,"•  the reason for not hitting the performance management requirements"]
[null,null,"•  what mitigating actions you will take"]
[]
[]
[null,"Please limit this to a maximum of 250 words.  We will contact you if we require further information."]
[null,"Word count:",{"$f":"LEN(TRIM(B32))-LEN(SUBSTITUTE(B32,\" \",\"\"))+1","v":1}]
[null,null,null,null,null,null,null,null,null,{"$f":"IF(ISBLANK(B32),\"✖\",IF(C31>260,\"✖\",\"✔\"))","v":"✖"}]
[]
[]
[]
[]
[]
[]
[]
[]
[]
[]
[]
[]
[]
[]
[]
[]
[]
[]
[]
[]
[null,"Section 4. Declaration"]
[]
[null,"Please tick to confirm you have the authority to act on behalf the organisation named in this form",null,null,null,null,false,null,null,{"$f":"IF(G55=FALSE, \"✖\", \"✔\")","v":"✖"}]
[]
[null,"Name",null,null,null,null,null,null,null,{"$f":"IF(ISBLANK(C57), \"✖\", \"✔\")","v":"✖"}]
[]
[null,"Position",null,null,null,null,null,null,null,{"$f":"IF(ISBLANK(C59), \"✖\", \"✔\")","v":"✖"}]
[]
[null,"Date",null,null,null,null,null,null,null,{"$f":"IF(ISBLANK(C61), \"✖\", \"✔\")","v":"✖"}]
[]
[null,"Once form shows as COMPLETE - please raise an enquiry via the customer help portal, and attach completed form to the enquiry.\n\nTitle the enquiry - Post 19 Allocations - Exceptional request"]
[null,"Customer help portal (education.gov.uk)"]
[]
[null,"For more information on the customer help portal, you can find support in our customer help centre"]
[null,"Customer help centre (education.gov.uk)"]

{"sheet":"Request Guidance","index":3,"n_rows":48,"n_cols":3,"rows_kept":48,"cut":false,"hidden":false,"merged":[[29,1,29,2],[6,1,6,2],[7,1,7,2],[9,1,9,2],[11,1,11,2],[13,1,13,2],[15,1,15,2],[17,1,17,2],[18,1,18,2],[19,1,19,2],[21,1,21,2],[23,1,23,2],[25,1,25,2],[27,1,27,2],[28,1,28,2],[26,1,26,7]]}
[]
[]
[]
[]
[]
[]
[null,"Post 19 - First time request / Top up guidance"]
[null,"Funding year 2024 to 2025"]
[]
[null,"At the review point set out in the funding and performance management rules, you have the ability to :-"]
[]
[null,"- request a ESFA Funded Level 3 free courses for jobs allocation if you have a 2024 to 2025 ESFA funded ASF grant agreement and have not been issued level 3 free courses for jobs allocation for 24-year-olds and above because you have not delivered these courses historically OR your Level 3 free courses for jobs contract value is below £45,000. "]
[]
[null,"You must complete the 'First time request' or 'Top up' sheet by 5pm on 4 December 2024. We will not accept any requests received after the deadline or submitted to a different email address. "]
[]
[null,"The maximum allocation you can apply for is £45,000 (including existing contract value)  This is not guaranteed, and the value we award may be lower. We will assess your request and the information you provide in line with the timetable set out in the performance management review."]
[]
[null,"You will only be considered if:"]
[null,"   - you have a 2024 to 2025 ESFA funded ASF funding agreement (grant only)"]
[null,"   - you have a good track record (as detailed in the funding and performance management rules 2024 to 2025)"]
[]
[null,"Please do not include any personal or sensitive data about your students when submitting your case. Personal data is information relating to a living individual who is, or can be, identified from the data provided. Personal data can be information about the individual, their families or circumstances. This may include names, contact details, gender or date of birth."]
[]
[null,"Returning the form"]
[]
[null,"Once the form shows the completed status, please submit the form via the Customer Help Portal, creating a new enquiry, in which you can attach the form."]
[null,"Customer help portal (education.gov.uk)"]
[null,"Ensure to title the enquiry Post 19 Allocations - First time or Top up request"]
[null,"If you have questions after reading this information, or if there’s anything else you need help with, you can find more support in our customer help centre."]
[null,"Customer help centre (education.gov.uk)"]
[]
[null,"Completing the form"]
[]
[null,"Field","Description"]
[null,"Completion Status","This box stays INCOMPLETE until all the yellow boxes are complete. Once all the required yellow boxes are complete, it will change to COMPLETE. We will not accept incomplete forms."]
[null,"Provider Name","This is automatically completed with input on the Complete me first page. Please ensure this displays your provider name."]
[null,"UK Provider Registration Number (UKPRN)","The UK Provider Registration Number as it appears on the UK Register of Learning Providers (UKRLP) will automatically populate once you select your provider name on the Complete me first page."]
[null,"Funding Stream in question","This box will be automatically completed with the information from the 'Complete me first' page. A separate form must be completed for each request type."]
[null,"Do you currently hold an ESFA funded ASF allocation?","Please select if you hold an ESFA funded ASF allocation.\n\nGrant Providers - For new requests you must hold an ESFA grant funded ASF allocation.  If you do not have an ESFA funded ASF allocation you are not able to request a level 3 free courses for jobs allocation.\n"]
[null,"Is this request for direct delivery or subcontracted?","Please select if the funding you are requesting is for Direct Delivery (delivered wholly by you) or Subcontracted."]
[null,"2024/2025 Allocation ","This is the value of your current ESFA funded level 3 free courses for jobs allocation from 1 August 2024 to 31 July 2025, if you have one."]
[null,"£ Value 2024/2025 request","Please enter the value you are requesting. The maximum you can request is £45,000 in total. (This will include any current allocated value)."]
[null,"Volume of starts","Please enter the planned number of starts you want to engage for the 2024 to 2025 funding year."]
[null,"Supporting Information Text Box 1","You need to provide information to support your request, there is a limit of the amount of characters that can be used.\n\nProvide a description of your delivery model and how this links to your longer term goal for level 3 free courses for jobs."]
[null,"Supporting Information Text Box 2","You need to provide information to support your request, there is a limit of the amount of characters that can be used.\n\nProvide details of your capacity and capability to deliver and whether you have evidence of learner demand. This should include details of resources, infrastructure and how you can build the on demand."]
[null,"Supporting Information Text Box 3 - (New Requests only)","You need to provide information to support your request, there is a limit of the amount of characters that can be used.\n\nWhat arrangements do you have in place to ensure successful outcomes? How will your offer enhance the choice and quality of provision for trainees, how will you support trainees into a job or further education. "]
[null,"Authority tick box","Please tick to confirm that you have the authority to act on behalf of the applicant organisation named in this form."]
[null,"Request completed by","Please ensure you enter your:\nName\nPosition in Organisation\nDate of Request"]

{"sheet":"First time request","index":4,"n_rows":258,"n_cols":10,"rows_kept":258,"cut":false,"hidden":false,"merged":[[253,1,253,6],[254,1,254,7],[256,1,256,8],[257,1,257,5],[21,1,21,2],[22,1,22,2],[50,2,50,7],[52,2,52,7],[54,2,54,4],[23,1,23,2],[34,1,34,7],[38,1,38,7],[42,1,42,7],[36,1,36,9],[2,1,2,7],[8,2,8,7],[10,2,10,3],[15,1,15,2],[15,3,15,7],[3,0,3,7]]}
[]
[null,null,null,null,null,null,null,null,null,"Completion status"]
[null,"First time request -  ESFA funded level 3 free courses for jobs (providers must hold an ASF grant allocation)",null,null,null,null,null,null,null,{"$f":"IF('COMPLETE ME FIRST'!D26:D26<>\"New request\",\"NOT REQUIRED\",IF(COUNTIFS(J6:J60,\"✔\")=COUNTA(J6:J60),\"Complete\",\"Incomplete\"))","v":"NOT REQUIRED"}]
[]
[null,"Please read the guidance page before completing this form. Please complete ALL of the cells highlighted yellow."]
[]
[null,"Section 1. provider details"]
[]
[null,"Provider name",{"$f":"'COMPLETE ME FIRST'!D20:D20","v":0},null,null,null,null,null,null,{"$f":"IF(C9=0, \"✖\", \"✔\")","v":"✖"}]
[]
[null,"UKPRN",{"$f":"IFERROR(VLOOKUP(C9,Providers!A:B,2,FALSE),\"\")","v":""}]
[]
[]
[null,"Section 2. request"]
[]
[null,"Funding stream",null,{"$f":"'COMPLETE ME FIRST'!D24:D24","v":0},null,null,null,null,null,{"$f":"IF(D16=0, \"✖\", \"✔\")","v":"✖"}]
[null,"Do you currently hold a ESFA funded ASF allocation?",null,null,null,null,null,null,null,{"$f":"IF(ISBLANK(H17),\"✖\",IF(H17=\"No\",\"✖\",\"✔\"))","v":"✖"}]
[null,"Is this request for direct delivery or subcontracted?",null,null,null,null,null,null,null,{"$f":"IF(ISBLANK(H18), \"✖\", \"✔\")","v":"✖"}]
[]
[null,"Total requested for 2024 to 2025 funding year"]
[]
[null,null,null,"2024/25 request","August to March ","April to July"]
[null,"Enter allocation value request £",null,null,{"$f":"IF(D23=\"\",\"\",ROUNDUP(D23*66.67%,0))","v":""},{"$f":"IF(D23=\"\",\"\",ROUNDDOWN(D23*33.33%,0))","v":""},null,null,null,{"$f":"IF(AND(ISBLANK(D23),ISBLANK(D23)),\"✖\", \"✔\")","v":"✖"}]
[null,"Volume of starts",null,null,null,null,null,null,null,{"$f":"IF(AND(ISBLANK(D24),ISBLANK(D24)),\"✖\", \"✔\")","v":"✖"}]
[null,"We will take your request into consideration, however we will use your data to calculate any allocations. The maximum you can request is £45,000"]
[]
[null,"Section 3. supporting information"]
[]
[null,"Please provide details for each of the following questions.  We will not accept any information outside of this form. We will contact you if we require further information."]
[]
[null,"Each question has a maximum of 150 words."]
[]
[null,"1. Provide a description of your delivery model and how this links to your longer term goal for level 3 free courses for jobs"]
[null,"Word count:",{"$f":"LEN(TRIM(B35))-LEN(SUBSTITUTE(B35,\" \",\"\"))+1","v":1}]
[null,null,null,null,null,null,null,null,null,{"$f":"IF(ISBLANK(B35),\"✖\",IF(C34>150,\"✖\",\"✔\"))","v":"✖"}]
[]
[null,"2. Provide details of your capacity and capability to deliver and whether you have evidence of learner demand."]
[null,"Word count:",{"$f":"LEN(TRIM(B39))-LEN(SUBSTITUTE(B39,\" \",\"\"))+1","v":1}]
[null,null,null,null,null,null,null,null,null,{"$f":"IF(ISBLANK(B39),\"✖\",IF(C38>150,\"✖\",\"✔\"))","v":"✖"}]
[]
[null,"3. What arrangements do you have in place to ensure successful outcomes?"]
[null,"Word count:",{"$f":"LEN(TRIM(B43))-LEN(SUBSTITUTE(B43,\" \",\"\"))+1","v":1}]
[null,null,null,null,null,null,null,null,null,{"$f":"IF(ISBLANK(B43),\"✖\",IF(C42>150,\"✖\",\"✔\"))","v":"✖"}]
[]
[null,"Section 4. Declaration"]
[]
[null,"•    I confirm that this request is a request for new funding only."]
[]
[null,"Please tick to confirm you have the authority to act on behalf the organisation named in this form",null,null,null,null,null,false,null,{"$f":"IF(H49=FALSE, \"✖\", \"✔\")","v":"✖"}]
[]
[null,"Name",null,null,null,null,null,null,null,{"$f":"IF(ISBLANK(C51), \"✖\", \"✔\")","v":"✖"}]
[]
[null,"Position",null,null,null,null,null,null,null,{"$f":"IF(ISBLANK(C53), \"✖\", \"✔\")","v":"✖"}]
[]
[null,"Date",null,null,null,null,null,null,null,{"$f":"IF(ISBLANK(C55), \"✖\", \"✔\")","v":"✖"}]
[]
[]
[]
[]
[]
[]
[]
[]
[]
[]
[]
[]
[]
[]
[]
[]
[]
[]
[]
[]
[]
[]
[]
[]
[]
[]
[]
[]
[]
[]
[]
[]
[]
[]
[]
[]
[]
[]
[]
[]
[]
[]
[]
[]
[]
[]
[]
[]
[]
[]
[]
[]
[]
[]
[]
[]
[]
[]
[]
[]
[]
[]
[]
[]
[]
[]
[]
[]
[]
[]
[]
[]
[]
[]
[]
[]
[]
[]
[]
[]
[]
[]
[]
[]
[]
[]
[]
[]
[]
[]
[]
[]
[]
[]
[]
[]
[]
[]
[]
[]
[]
[]
[]
[]
[]
[]
[]
[]
[]
[]
[]
[]
[]
[]
[]
[]
[]
[]
[]
[]
[]
[]
[]
[]
[]
[]
[]
[]
[]
[]
[]
[]
[]
[]
[]
[]
[]
[]
[]
[]
[]
[]
[]
[]
[]
[]
[]
[]
[]
[]
[]
[]
[]
[]
[]
[]
[]
[]
[]
[]
[]
[]
[]
[]
[]
[]
[]
[]
[]
[]
[]
[]
[]
[]
[]
[]
[]
[]
[]
[]
[]
[]
[]
[]
[]
[]
[]
[]
[]
[]
[]
[]
[]
[]
[]
[]
[]
[]
[null,"Once form shows as COMPLETE - please raise an enquiry via the customer help portal, and attach completed form to the enquiry.\n\nTitle the enquiry - Post 19 Allocations - First time request"]
[null,"Customer help portal (education.gov.uk)"]
[]
[null,"For more information on the customer help portal, you can find support in our customer help centre"]
[null,"Customer help centre (education.gov.uk)"]

{"sheet":"Top Up","index":5,"n_rows":258,"n_cols":10,"rows_kept":258,"cut":false,"hidden":false,"merged":[[253,1,253,6],[254,1,254,7],[256,1,256,8],[257,1,257,5],[56,2,56,4],[21,1,21,2],[36,1,36,7],[38,1,38,9],[40,1,40,7],[44,1,44,7],[52,2,52,7],[54,2,54,7],[22,1,22,2],[23,1,23,2],[24,1,24,2],[25,1,25,2],[26,1,26,10],[8,2,8,7],[10,2,10,3],[15,1,15,2],[15,3,15,7],[2,1,2,7]]}
[]
[null,null,null,null,null,null,null,null,null,"Completion status"]
[null,"Top up request if contract value is below £45,000 - ESFA funded level 3 free courses for jobs (grant)",null,null,null,null,null,null,null,{"$f":"IF('COMPLETE ME FIRST'!D26:D26<>\"Top up if below £45,000\",\"NOT REQUIRED\",IF(COUNTIFS(J6:J62,\"✔\")=COUNTA(J6:J62),\"Complete\",\"Incomplete\"))","v":"NOT REQUIRED"}]
[]
[null,"Please read the guidance page before completing this form. Please complete ALL of the cells highlighted yellow."]
[]
[null,"Section 1. provider details"]
[]
[null,"Provider name",{"$f":"'COMPLETE ME FIRST'!D20:D20","v":0},null,null,null,null,null,null,{"$f":"IF(C9=0, \"✖\", \"✔\")","v":"✖"}]
[]
[null,"UKPRN",{"$f":"IFERROR(VLOOKUP(C9,Providers!A:B,2,FALSE),\"\")","v":""}]
[]
[]
[null,"Section 2. request"]
[]
[null,"Funding stream",null,{"$f":"'COMPLETE ME FIRST'!D24:D24","v":0},null,null,null,null,null,{"$f":"IF(D16=0, \"✖\", \"✔\")","v":"✖"}]
[null,"Do you currently hold a ESFA funded ASF allocation?",null,null,null,null,null,null,null,{"$f":"IF(ISBLANK(H17), \"✖\", \"✔\")","v":"✖"}]
[null,"Is this request for direct delivery or subcontracted?",null,null,null,null,null,null,null,{"$f":"IF(ISBLANK(H18), \"✖\", \"✔\")","v":"✖"}]
[]
[null,"Total requested for 2024 to 2025 funding year"]
[]
[null,null,null,"2024/25 request","August to March ","April to July"]
[null,"Enter current allocation value £",null,null,{"$f":"IF(D23=\"\",\"\",ROUNDUP(D23*66.67%,0))","v":""},{"$f":"IF(D23=\"\",\"\",ROUNDDOWN(D23*33.33%,0))","v":""},null,null,null,{"$f":"IF(AND(ISBLANK(D23),ISBLANK(D23)),\"✖\", \"✔\")","v":"✖"}]
[null,"Enter the top up value requested £",null,null,{"$f":"IF(D24=\"\",\"\",ROUNDUP(D24*66.67%,0))","v":""},{"$f":"IF(D24=\"\",\"\",ROUNDDOWN(D24*33.33%,0))","v":""},null,null,null,{"$f":"IF(AND(ISBLANK(D24),ISBLANK(D24)),\"✖\", \"✔\")","v":"✖"}]
[null,"New Value",null,{"$f":"SUM(D23:D24)","v":0},{"$f":"SUM(E23:E24)","v":0},{"$f":"SUM(F23:F24)","v":0},null,null,null,{"$f":"IF(D25>=45001,\"✖\",\"✔\")","v":"✔"}]
[null,"Volume of starts",null,null,null,null,null,null,null,{"$f":"IF(AND(ISBLANK(D26),ISBLANK(D26)),\"✖\", \"✔\")","v":"✖"}]
[null,"We will take your request into consideration, however we will use your data to calculate any allocations. The maximum you can request is £45,000 in total, including current allocation value"]
[]
[null,"Section 3. supporting information"]
[]
[null,"Please provide details for each of the following questions.  We will not accept any information outside of this form. We will contact you if we require further information."]
[]
[null,"Each question has a maximum of 150 words."]
[]
[null,"1. Provide a description of your delivery model and how this links to your longer term goal for level 3 free courses for jobs. "]
[null,"Word count:",{"$f":"LEN(TRIM(B37))-LEN(SUBSTITUTE(B37,\" \",\"\"))+1","v":1}]
[null,null,null,null,null,null,null,null,null,{"$f":"IF(ISBLANK(B37),\"✖\",IF(C36>150,\"✖\",\"✔\"))","v":"✖"}]
[]
[null,"2. Provide details of your capacity and capability to deliver and whether you have evidence of learner demand."]
[null,"Word count:",{"$f":"LEN(TRIM(B41))-LEN(SUBSTITUTE(B41,\" \",\"\"))+1","v":1}]
[null,null,null,null,null,null,null,null,null,{"$f":"IF(ISBLANK(B41),\"✖\",IF(C40>150,\"✖\",\"✔\"))","v":"✖"}]
[]
[null,"3. What arrangements do you have in place to ensure successful outcomes?"]
[null,"Word count:",{"$f":"LEN(TRIM(B45))-LEN(SUBSTITUTE(B45,\" \",\"\"))+1","v":1}]
[]
[]
[null,"Section 4. Declaration"]
[]
[null,"•    I confirm that this request for additional funding is to top up a current allocation that is below £45,000 only"]
[]
[null,"Please tick to confirm you have the authority to act on behalf the organisation named in this form",null,null,null,null,null,false,null,{"$f":"IF(H51=FALSE, \"✖\", \"✔\")","v":"✖"}]
[]
[null,"Name",null,null,null,null,null,null,null,{"$f":"IF(ISBLANK(C53), \"✖\", \"✔\")","v":"✖"}]
[]
[null,"Position",null,null,null,null,null,null,null,{"$f":"IF(ISBLANK(C55), \"✖\", \"✔\")","v":"✖"}]
[]
[null,"Date",null,null,null,null,null,null,null,{"$f":"IF(ISBLANK(C57), \"✖\", \"✔\")","v":"✖"}]
[]
[]
[]
[]
[]
[]
[]
[]
[]
[]
[]
[]
[]
[]
[]
[]
[]
[]
[]
[]
[]
[]
[]
[]
[]
[]
[]
[]
[]
[]
[]
[]
[]
[]
[]
[]
[]
[]
[]
[]
[]
[]
[]
[]
[]
[]
[]
[]
[]
[]
[]
[]
[]
[]
[]
[]
[]
[]
[]
[]
[]
[]
[]
[]
[]
[]
[]
[]
[]
[]
[]
[]
[]
[]
[]
[]
[]
[]
[]
[]
[]
[]
[]
[]
[]
[]
[]
[]
[]
[]
[]
[]
[]
[]
[]
[]
[]
[]
[]
[]
[]
[]
[]
[]
[]
[]
[]
[]
[]
[]
[]
[]
[]
[]
[]
[]
[]
[]
[]
[]
[]
[]
[]
[]
[]
[]
[]
[]
[]
[]
[]
[]
[]
[]
[]
[]
[]
[]
[]
[]
[]
[]
[]
[]
[]
[]
[]
[]
[]
[]
[]
[]
[]
[]
[]
[]
[]
[]
[]
[]
[]
[]
[]
[]
[]
[]
[]
[]
[]
[]
[]
[]
[]
[]
[]
[]
[]
[]
[]
[]
[]
[]
[]
[]
[]
[]
[]
[]
[]
[]
[]
[]
[]
[]
[]
[]
[null,"Once form shows as COMPLETE - please raise an enquiry via the customer help portal, and attach completed form to the enquiry.\n\nTitle the enquiry - Post 19 Allocations - Top up request"]
[null,"Customer help portal (education.gov.uk)"]
[]
[null,"For more information on the customer help portal, you can find support in our customer help centre"]
[null,"Customer help centre (education.gov.uk)"]

{"sheet":"Providers","index":6,"n_rows":377,"n_cols":12,"rows_kept":377,"cut":false,"hidden":true,"merged":[]}
["ABINGDON AND WITNEY COLLEGE",10000055,null,null,null,null,null,null,"UKPRN","Name","UKPRN2","Type"]
["ACADEMY TRANSFORMATION TRUST (Grant)",10039859,null,null,"ESFA Funded Adult Education Budget (AEB)",null,null,null,10000055,"ABINGDON AND WITNEY COLLEGE",10000055,"Grant"]
["ACADEMY TRANSFORMATION TRUST (Contract for Services)",10039859,null,null,"16-18 Traineeships ",null,null,null,10039859,"ACADEMY TRANSFORMATION TRUST (Grant)",10039859,"Grant"]
["ACCESS TRAINING (EAST MIDLANDS) LTD",10010584,null,null,"19-24 traineeships",null,null,null,10039859,"ACADEMY TRANSFORMATION TRUST (Contract for Services)",10039859,"Contract for Services"]
["ACORN TRAINING LTD",10023489,null,null,null,null,null,null,10010584,"ACCESS TRAINING (EAST MIDLANDS) LTD",10010584,"Contract for Services"]
["ACTIVATE LEARNING",10004927,null,null,"Do not meet the track record criteria",null,null,null,10023489,"ACORN TRAINING LTD",10023489,"Contract for Services"]
["AGINCARE GROUP LIMITED",10048865,null,null,"Data error",null,null,null,10004927,"ACTIVATE LEARNING",10004927,"Grant"]
["ARTS UNIVERSITY PLYMOUTH",10005127,null,null,"Technical error",null,null,null,10048865,"AGINCARE GROUP LIMITED",10048865,"Contract for Services"]
["ASKHAM BRYAN COLLEGE",10000415,null,null,"Have not met the threshold for growth",null,null,null,10005127,"ARTS UNIVERSITY PLYMOUTH",10005127,"Grant"]
["ASPIRE SPORTING ACADEMY LTD",10032029,null,null,"More than one of the above (please detail below)",null,null,null,10000415,"ASKHAM BRYAN COLLEGE",10000415,"Grant"]
["AYLESBURY COLLEGE",10000473,null,null,"Exemption from auto reduction in Performance Review",null,null,null,10032029,"ASPIRE SPORTING ACADEMY LTD",10032029,"Contract for Services"]
["BACK 2 WORK COMPLETE TRAINING LIMITED",10033156,null,null,null,null,null,null,10000473,"AYLESBURY COLLEGE",10000473,"Grant"]
["BARKING & DAGENHAM LONDON BOROUGH COUNCIL",10000143,null,null,"I confirm I have authority",null,null,null,10033156,"BACK 2 WORK COMPLETE TRAINING LIMITED",10033156,"Contract for Services"]
["BARKING AND DAGENHAM COLLEGE",10000528,null,null,"I do not have authority",null,null,null,10000143,"BARKING & DAGENHAM LONDON BOROUGH COUNCIL",10000143,"Grant"]
["BARNET & SOUTHGATE COLLEGE (Grant)",10000533,null,null,null,null,null,null,10000528,"BARKING AND DAGENHAM COLLEGE",10000528,"Grant"]
["BARNET & SOUTHGATE COLLEGE (Contract for Services)",10000533,null,null,null,null,null,null,10000533,"BARNET & SOUTHGATE COLLEGE (Grant)",10000533,"Grant"]
["BASINGSTOKE COLLEGE OF TECHNOLOGY",10000560,null,null,null,null,null,null,10000533,"BARNET & SOUTHGATE COLLEGE (Contract for Services)",10000533,"Contract for Services"]
["BATH COLLEGE",10001465,null,null,null,null,null,null,10000560,"BASINGSTOKE COLLEGE OF TECHNOLOGY",10000560,"Grant"]
["BEACON EDUCATION PARTNERSHIP LIMITED",10033608,null,null,null,null,null,null,10001465,"BATH COLLEGE",10001465,"Grant"]
["BEDFORD COLLEGE",10000610,null,null,null,null,null,null,10033608,"BEACON EDUCATION PARTNERSHIP LIMITED",10033608,"Contract for Services"]
["BEXHILL COLLEGE",10000670,null,null,null,null,null,null,10000610,"BEDFORD COLLEGE",10000610,"Grant"]
["BEXLEY LONDON BOROUGH COUNCIL",10000146,null,null,null,null,null,null,10000670,"BEXHILL COLLEGE",10000670,"Grant"]
["BIRMINGHAM CITY COUNCIL",10000703,null,null,null,null,null,null,10000146,"BEXLEY LONDON BOROUGH COUNCIL",10000146,"Grant"]
["BIRMINGHAM METROPOLITAN COLLEGE",10006442,null,null,null,null,null,null,10000703,"BIRMINGHAM CITY COUNCIL",10000703,"Grant"]
["BISHOP AUCKLAND COLLEGE",10000720,null,null,null,null,null,null,10006442,"BIRMINGHAM METROPOLITAN COLLEGE",10006442,"Grant"]
["BISHOP BURTON COLLEGE",10000721,null,null,null,null,null,null,10000720,"BISHOP AUCKLAND COLLEGE",10000720,"Grant"]
["BLACKBURN COLLEGE",10000747,null,null,null,null,null,null,10000721,"BISHOP BURTON COLLEGE",10000721,"Grant"]
["BLACKBURN WITH DARWEN BOROUGH COUNCIL",10000748,null,null,null,null,null,null,10000747,"BLACKBURN COLLEGE",10000747,"Grant"]
["BLACKPOOL AND THE FYLDE COLLEGE",10000754,null,null,null,null,null,null,10000748,"BLACKBURN WITH DARWEN BOROUGH COUNCIL",10000748,"Grant"]
["BLACKPOOL BOROUGH COUNCIL",10000755,null,null,null,null,null,null,10000754,"BLACKPOOL AND THE FYLDE COLLEGE",10000754,"Grant"]
["BOLTON COLLEGE",10000794,null,null,null,null,null,null,10000755,"BLACKPOOL BOROUGH COUNCIL",10000755,"Grant"]
["BOROUGH OF TELFORD AND WREKIN",10006547,null,null,null,null,null,null,10000794,"BOLTON COLLEGE",10000794,"Grant"]
["BOSTON COLLEGE",10000812,null,null,null,null,null,null,10006547,"BOROUGH OF TELFORD AND WREKIN",10006547,"Grant"]
["BOURNEMOUTH AND POOLE COLLEGE, THE",10000820,null,null,null,null,null,null,10000812,"BOSTON COLLEGE",10000812,"Grant"]
["BOURNEMOUTH CHRISTCHURCH AND POOLE COUNCIL",10005143,null,null,null,null,null,null,10000820,"BOURNEMOUTH AND POOLE COLLEGE, THE",10000820,"Grant"]
["BRACKNELL FOREST BOROUGH COUNCIL",10000834,null,null,null,null,null,null,10005143,"BOURNEMOUTH CHRISTCHURCH AND POOLE COUNCIL",10005143,"Grant"]
["BRADFORD COLLEGE",10000840,null,null,null,null,null,null,10000834,"BRACKNELL FOREST BOROUGH COUNCIL",10000834,"Grant"]
["BRENT LONDON BOROUGH COUNCIL",10000863,null,null,null,null,null,null,10000840,"BRADFORD COLLEGE",10000840,"Grant"]
["BRIDGWATER AND TAUNTON COLLEGE",10000878,null,null,null,null,null,null,10000863,"BRENT LONDON BOROUGH COUNCIL",10000863,"Grant"]
["BRIGHTON & HOVE CITY COUNCIL",10000883,null,null,null,null,null,null,10000878,"BRIDGWATER AND TAUNTON COLLEGE",10000878,"Grant"]
["BRISTOL CITY COUNCIL",10000896,null,null,null,null,null,null,10000883,"BRIGHTON & HOVE CITY COUNCIL",10000883,"Grant"]
["BROCKENHURST COLLEGE",10000944,null,null,null,null,null,null,10000896,"BRISTOL CITY COUNCIL",10000896,"Grant"]
["BROMLEY LONDON BOROUGH COUNCIL",10003987,null,null,null,null,null,null,10000944,"BROCKENHURST COLLEGE",10000944,"Grant"]
["BROOKLANDS COLLEGE",10000950,null,null,null,null,null,null,10003987,"BROMLEY LONDON BOROUGH COUNCIL",10003987,"Grant"]
["BUCKINGHAMSHIRE COUNCIL",10000976,null,null,null,null,null,null,10000950,"BROOKLANDS COLLEGE",10000950,"Grant"]
["BURNLEY COLLEGE",10001000,null,null,null,null,null,null,10000976,"BUCKINGHAMSHIRE COUNCIL",10000976,"Grant"]
["BURTON AND SOUTH DERBYSHIRE COLLEGE",10001004,null,null,null,null,null,null,10001000,"BURNLEY COLLEGE",10001000,"Grant"]
["BURY COLLEGE",10001005,null,null,null,null,null,null,10001004,"BURTON AND SOUTH DERBYSHIRE COLLEGE",10001004,"Grant"]
["BURY METROPOLITAN BOROUGH COUNCIL",10001008,null,null,null,null,null,null,10001005,"BURY COLLEGE",10001005,"Grant"]
["CAMBRIDGE REGIONAL COLLEGE",10001116,null,null,null,null,null,null,10001008,"BURY METROPOLITAN BOROUGH COUNCIL",10001008,"Grant"]
["CAMBRIDGESHIRE COUNTY COUNCIL",10001123,null,null,null,null,null,null,10001116,"CAMBRIDGE REGIONAL COLLEGE",10001116,"Grant"]
["CAMDEN LONDON BOROUGH COUNCIL",10003988,null,null,null,null,null,null,10001123,"CAMBRIDGESHIRE COUNTY COUNCIL",10001123,"Grant"]
["CAPEL MANOR COLLEGE",10001148,null,null,null,null,null,null,10003988,"CAMDEN LONDON BOROUGH COUNCIL",10003988,"Grant"]
["CECOS COMPUTING INTERNATIONAL LIMITED",10037364,null,null,null,null,null,null,10001148,"CAPEL MANOR COLLEGE",10001148,"Grant"]
["CENTRAL BEDFORDSHIRE COUNCIL",10024292,null,null,null,null,null,null,10037364,"CECOS COMPUTING INTERNATIONAL LIMITED",10037364,"Contract for Services"]
["CHALLENGE-TRG SKILLS LIMITED",10005094,null,null,null,null,null,null,10024292,"CENTRAL BEDFORDSHIRE COUNCIL",10024292,"Grant"]
["CHELMSFORD COLLEGE",10001353,null,null,null,null,null,null,10005094,"CHALLENGE-TRG SKILLS LIMITED",10005094,"Contract for Services"]
["CHESHIRE COLLEGE SOUTH AND WEST",10005972,null,null,null,null,null,null,10001353,"CHELMSFORD COLLEGE",10001353,"Grant"]
["CHESHIRE EAST COUNCIL",10024293,null,null,null,null,null,null,10005972,"CHESHIRE COLLEGE SOUTH AND WEST",10005972,"Grant"]
["CHESHIRE WEST AND CHESTER COUNCIL",10024294,null,null,null,null,null,null,10024293,"CHESHIRE EAST COUNCIL",10024293,"Grant"]
["CHESTERFIELD COLLEGE",10001378,null,null,null,null,null,null,10024294,"CHESHIRE WEST AND CHESTER COUNCIL",10024294,"Grant"]
["CHICHESTER COLLEGE GROUP",10007817,null,null,null,null,null,null,10001378,"CHESTERFIELD COLLEGE",10001378,"Grant"]
["CIRENCESTER COLLEGE",10001446,null,null,null,null,null,null,10007817,"CHICHESTER COLLEGE GROUP",10007817,"Grant"]
["CITY COLLEGE NORWICH",10004772,null,null,null,null,null,null,10001446,"CIRENCESTER COLLEGE",10001446,"Grant"]
["CITY COLLEGE PLYMOUTH",10005128,null,null,null,null,null,null,10004772,"CITY COLLEGE NORWICH",10004772,"Grant"]
["CITY OF BRISTOL COLLEGE",10001467,null,null,null,null,null,null,10005128,"CITY COLLEGE PLYMOUTH",10005128,"Grant"]
["CITY OF PORTSMOUTH COLLEGE",10007945,null,null,null,null,null,null,10001467,"CITY OF BRISTOL COLLEGE",10001467,"Grant"]
["CITY OF SUNDERLAND COLLEGE",10001475,null,null,null,null,null,null,10007945,"CITY OF PORTSMOUTH COLLEGE",10007945,"Grant"]
["CITY OF WOLVERHAMPTON COLLEGE",10007578,null,null,null,null,null,null,10001475,"CITY OF SUNDERLAND COLLEGE",10001475,"Grant"]
["CITY OF YORK COUNCIL",10001477,null,null,null,null,null,null,10007578,"CITY OF WOLVERHAMPTON COLLEGE",10007578,"Grant"]
["COLCHESTER INSTITUTE",10001535,null,null,null,null,null,null,10001477,"CITY OF YORK COUNCIL",10001477,"Grant"]
["COMMON COUNCIL OF THE CITY OF LONDON",10008915,null,null,null,null,null,null,10001535,"COLCHESTER INSTITUTE",10001535,"Grant"]
["COMMUNITY TRAINING PORTAL LIMITED",10020068,null,null,null,null,null,null,10008915,"COMMON COUNCIL OF THE CITY OF LONDON",10008915,"Grant"]
["CORNWALL COLLEGE",10001696,null,null,null,null,null,null,10020068,"COMMUNITY TRAINING PORTAL LIMITED",10020068,"Contract for Services"]
["CORNWALL COUNCIL",10001695,null,null,null,null,null,null,10001696,"CORNWALL COLLEGE",10001696,"Grant"]
["COUNCIL OF THE ISLES OF SCILLY",10001710,null,null,null,null,null,null,10001695,"CORNWALL COUNCIL",10001695,"Grant"]
["COUNTY DURHAM COUNCIL",10002064,null,null,null,null,null,null,10001710,"COUNCIL OF THE ISLES OF SCILLY",10001710,"Grant"]
["COVENTRY CITY COUNCIL",10001723,null,null,null,null,null,null,10002064,"COUNTY DURHAM COUNCIL",10002064,"Grant"]
["COVENTRY COLLEGE",10003010,null,null,null,null,null,null,10001723,"COVENTRY CITY COUNCIL",10001723,"Grant"]
["CRAVEN COLLEGE",10001743,null,null,null,null,null,null,10003010,"COVENTRY COLLEGE",10003010,"Grant"]
["CROYDON COLLEGE",10001778,null,null,null,null,null,null,10001743,"CRAVEN COLLEGE",10001743,"Grant"]
["CROYDON LONDON BOROUGH COUNCIL",10003989,null,null,null,null,null,null,10001778,"CROYDON COLLEGE",10001778,"Grant"]
["CT SKILLS LIMITED",10001174,null,null,null,null,null,null,10003989,"CROYDON LONDON BOROUGH COUNCIL",10003989,"Grant"]
["DARLINGTON BOROUGH COUNCIL",10001848,null,null,null,null,null,null,10001174,"CT SKILLS LIMITED",10001174,"Contract for Services"]
["DARLINGTON COLLEGE",10001850,null,null,null,null,null,null,10001848,"DARLINGTON BOROUGH COUNCIL",10001848,"Grant"]
["DCG",10001919,null,null,null,null,null,null,10001850,"DARLINGTON COLLEGE",10001850,"Grant"]
["DERBY BUSINESS COLLEGE LIMITED",10005109,null,null,null,null,null,null,10001919,"DCG",10001919,"Grant"]
["DERBY CITY COUNCIL",10001918,null,null,null,null,null,null,10005109,"DERBY BUSINESS COLLEGE LIMITED",10005109,"Contract for Services"]
["DERBYSHIRE COUNTY COUNCIL",10001928,null,null,null,null,null,null,10001918,"DERBY CITY COUNCIL",10001918,"Grant"]
["DERWENTSIDE COLLEGE",10001934,null,null,null,null,null,null,10001928,"DERBYSHIRE COUNTY COUNCIL",10001928,"Grant"]
["DEVON COUNTY COUNCIL",10001951,null,null,null,null,null,null,10001934,"DERWENTSIDE COLLEGE",10001934,"Grant"]
["DN COLLEGES GROUP",10004695,null,null,null,null,null,null,10001951,"DEVON COUNTY COUNCIL",10001951,"Grant"]
["DUDLEY COLLEGE OF TECHNOLOGY",10007924,null,null,null,null,null,null,10004695,"DN COLLEGES GROUP",10004695,"Grant"]
["DUDLEY METROPOLITAN BOROUGH COUNCIL",10002054,null,null,null,null,null,null,10007924,"DUDLEY COLLEGE OF TECHNOLOGY",10007924,"Grant"]
["EALING LONDON BOROUGH COUNCIL",10009206,null,null,null,null,null,null,10002054,"DUDLEY METROPOLITAN BOROUGH COUNCIL",10002054,"Grant"]
["EALING, HAMMERSMITH & WEST LONDON COLLEGE",10002094,null,null,null,null,null,null,10009206,"EALING LONDON BOROUGH COUNCIL",10009206,"Grant"]
["EAST COAST COLLEGE",10004116,null,null,null,null,null,null,10002094,"EALING, HAMMERSMITH & WEST LONDON COLLEGE",10002094,"Grant"]
["EAST DURHAM COLLEGE",10002111,null,null,null,null,null,null,10004116,"EAST COAST COLLEGE",10004116,"Grant"]
["EAST RIDING OF YORKSHIRE COUNCIL",10008919,null,null,null,null,null,null,10002111,"EAST DURHAM COLLEGE",10002111,"Grant"]
["EAST SURREY COLLEGE",10002130,null,null,null,null,null,null,10008919,"EAST RIDING OF YORKSHIRE COUNCIL",10008919,"Grant"]
["EAST SUSSEX COLLEGE GROUP",10002923,null,null,null,null,null,null,10002130,"EAST SURREY COLLEGE",10002130,"Grant"]
["EAST SUSSEX COUNTY COUNCIL",10002131,null,null,null,null,null,null,10002923,"EAST SUSSEX COLLEGE GROUP",10002923,"Grant"]
["EDEN TRAINING ACADEMY LIMITED",10056731,null,null,null,null,null,null,10002131,"EAST SUSSEX COUNTY COUNCIL",10002131,"Grant"]
["EKC GROUP",10006570,null,null,null,null,null,null,10056731,"EDEN TRAINING ACADEMY LIMITED",10056731,"Contract for Services"]
["ESSEX COUNTY COUNCIL",10002327,null,null,null,null,null,null,10006570,"EKC GROUP",10006570,"Grant"]
["E-TRAINING LIMITED",10002078,null,null,null,null,null,null,10002327,"ESSEX COUNTY COUNCIL",10002327,"Grant"]
["EVOLVE YOUR FUTURE LIMITED",10021427,null,null,null,null,null,null,10002078,"E-TRAINING LIMITED",10002078,"Contract for Services"]
["EXETER COLLEGE",10002370,null,null,null,null,null,null,10021427,"EVOLVE YOUR FUTURE LIMITED",10021427,"Contract for Services"]
["FARNBOROUGH COLLEGE OF TECHNOLOGY",10002412,null,null,null,null,null,null,10002370,"EXETER COLLEGE",10002370,"Grant"]
["FIRCROFT COLLEGE OF ADULT EDUCATION",10008641,null,null,null,null,null,null,10002412,"FARNBOROUGH COLLEGE OF TECHNOLOGY",10002412,"Grant"]
["FRANKLIN COLLEGE",10002570,null,null,null,null,null,null,10008641,"FIRCROFT COLLEGE OF ADULT EDUCATION",10008641,"Grant"]
["FREE TO LEARN LTD",10030935,null,null,null,null,null,null,10002570,"FRANKLIN COLLEGE",10002570,"Grant"]
["FUNCTIONAL SKILLS UK LIMITED",10047090,null,null,null,null,null,null,10030935,"FREE TO LEARN LTD",10030935,"Contract for Services"]
["FURNESS COLLEGE",10002599,null,null,null,null,null,null,10047090,"FUNCTIONAL SKILLS UK LIMITED",10047090,"Contract for Services"]
["FUTURES ADVICE, SKILLS AND EMPLOYMENT LIMITED",10001647,null,null,null,null,null,null,10002599,"FURNESS COLLEGE",10002599,"Grant"]
["GATESHEAD COLLEGE",10002638,null,null,null,null,null,null,10001647,"FUTURES ADVICE, SKILLS AND EMPLOYMENT LIMITED",10001647,"Contract for Services"]
["GATESHEAD COUNCIL",10002639,null,null,null,null,null,null,10002638,"GATESHEAD COLLEGE",10002638,"Grant"]
["GATEWAY SIXTH FORM COLLEGE",10085525,null,null,null,null,null,null,10002639,"GATESHEAD COUNCIL",10002639,"Grant"]
["GLOUCESTERSHIRE COLLEGE",10002696,null,null,null,null,null,null,10085525,"GATEWAY SIXTH FORM COLLEGE",10085525,"Grant"]
["GLOUCESTERSHIRE COUNTY COUNCIL",10002697,null,null,null,null,null,null,10002696,"GLOUCESTERSHIRE COLLEGE",10002696,"Grant"]
["GRANTHAM COLLEGE",10002743,null,null,null,null,null,null,10002697,"GLOUCESTERSHIRE COUNTY COUNCIL",10002697,"Grant"]
["HACKNEY LONDON BOROUGH COUNCIL",10010792,null,null,null,null,null,null,10002743,"GRANTHAM COLLEGE",10002743,"Grant"]
["HALESOWEN COLLEGE",10002852,null,null,null,null,null,null,10010792,"HACKNEY LONDON BOROUGH COUNCIL",10010792,"Grant"]
["HAMMERSMITH AND FULHAM LONDON BOROUGH COUNCIL",10002868,null,null,null,null,null,null,10002852,"HALESOWEN COLLEGE",10002852,"Grant"]
["HAMPSHIRE COUNTY COUNCIL",10002872,null,null,null,null,null,null,10002868,"HAMMERSMITH AND FULHAM LONDON BOROUGH COUNCIL",10002868,"Grant"]
["HARINGEY LONDON BOROUGH COUNCIL",10002859,null,null,null,null,null,null,10002872,"HAMPSHIRE COUNTY COUNCIL",10002872,"Grant"]
["HARLOW COLLEGE",10002899,null,null,null,null,null,null,10002859,"HARINGEY LONDON BOROUGH COUNCIL",10002859,"Grant"]
["HARROW LONDON BOROUGH COUNCIL",10002910,null,null,null,null,null,null,10002899,"HARLOW COLLEGE",10002899,"Grant"]
["HARTLEPOOL BOROUGH COUNCIL",10002916,null,null,null,null,null,null,10002910,"HARROW LONDON BOROUGH COUNCIL",10002910,"Grant"]
["HARTLEPOOL COLLEGE OF FURTHER EDUCATION",10002917,null,null,null,null,null,null,10002916,"HARTLEPOOL BOROUGH COUNCIL",10002916,"Grant"]
["HARTPURY COLLEGE OF FURTHER EDUCATION",10080810,null,null,null,null,null,null,10002917,"HARTLEPOOL COLLEGE OF FURTHER EDUCATION",10002917,"Grant"]
["HAVANT AND SOUTH DOWNS COLLEGE",10005979,null,null,null,null,null,null,10080810,"HARTPURY COLLEGE OF FURTHER EDUCATION",10080810,"Grant"]
["HAVERING LONDON BOROUGH COUNCIL",10003993,null,null,null,null,null,null,10005979,"HAVANT AND SOUTH DOWNS COLLEGE",10005979,"Grant"]
["HEART OF WORCESTERSHIRE COLLEGE",10007977,null,null,null,null,null,null,10003993,"HAVERING LONDON BOROUGH COUNCIL",10003993,"Grant"]
["HEART OF YORKSHIRE EDUCATION GROUP",10007289,null,null,null,null,null,null,10007977,"HEART OF WORCESTERSHIRE COLLEGE",10007977,"Grant"]
["HEREFORD COLLEGE OF ARTS",10003022,null,null,null,null,null,null,10007289,"HEART OF YORKSHIRE EDUCATION GROUP",10007289,"Grant"]
["HEREFORDSHIRE COUNCIL",10003025,null,null,null,null,null,null,10003022,"HEREFORD COLLEGE OF ARTS",10003022,"Grant"]
["HEREFORDSHIRE, LUDLOW, AND NORTH SHROPSHIRE COLLEGE",10003023,null,null,null,null,null,null,10003025,"HEREFORDSHIRE COUNCIL",10003025,"Grant"]
["HEREWARD COLLEGE OF FURTHER EDUCATION",10003029,null,null,null,null,null,null,10003023,"HEREFORDSHIRE, LUDLOW, AND NORTH SHROPSHIRE COLLEGE",10003023,"Grant"]
["HERTFORD REGIONAL COLLEGE",10003035,null,null,null,null,null,null,10003029,"HEREWARD COLLEGE OF FURTHER EDUCATION",10003029,"Grant"]
["HERTFORDSHIRE COUNTY COUNCIL",10003039,null,null,null,null,null,null,10003035,"HERTFORD REGIONAL COLLEGE",10003035,"Grant"]
["HILLINGDON LONDON BOROUGH COUNCIL",10003089,null,null,null,null,null,null,10003039,"HERTFORDSHIRE COUNTY COUNCIL",10003039,"Grant"]
["HOPWOOD HALL COLLEGE",10003146,null,null,null,null,null,null,10003089,"HILLINGDON LONDON BOROUGH COUNCIL",10003089,"Grant"]
["HOUNSLOW LONDON BOROUGH COUNCIL",10003165,null,null,null,null,null,null,10003146,"HOPWOOD HALL COLLEGE",10003146,"Grant"]
["HRUC",10007193,null,null,null,null,null,null,10003165,"HOUNSLOW LONDON BOROUGH COUNCIL",10003165,"Grant"]
["HUGH BAIRD COLLEGE",10003193,null,null,null,null,null,null,10007193,"HRUC",10007193,"Grant"]
["HULL COLLEGE",10003200,null,null,null,null,null,null,10003193,"HUGH BAIRD COLLEGE",10003193,"Grant"]
["HUMBER LEARNING CONSORTIUM",10003207,null,null,null,null,null,null,10003200,"HULL COLLEGE",10003200,"Grant"]
["INSPIRA CUMBRIA LIMITED",10001640,null,null,null,null,null,null,10003207,"HUMBER LEARNING CONSORTIUM",10003207,"Contract for Services"]
["INSPIRE EDUCATION GROUP",10005077,null,null,null,null,null,null,10001640,"INSPIRA CUMBRIA LIMITED",10001640,"Contract for Services"]
["ISLE OF WIGHT COLLEGE",10003406,null,null,null,null,null,null,10005077,"INSPIRE EDUCATION GROUP",10005077,"Grant"]
["ISLE OF WIGHT COUNCIL",10003407,null,null,null,null,null,null,10003406,"ISLE OF WIGHT COLLEGE",10003406,"Grant"]
["ITCHEN COLLEGE",10003427,null,null,null,null,null,null,10003407,"ISLE OF WIGHT COUNCIL",10003407,"Grant"]
["JBC SKILLS TRAINING LIMITED",10019314,null,null,null,null,null,null,10003427,"ITCHEN COLLEGE",10003427,"Grant"]
["JOHN LEGGOTT SIXTH FORM COLLEGE",10003491,null,null,null,null,null,null,10019314,"JBC SKILLS TRAINING LIMITED",10019314,"Contract for Services"]
["KENDAL COLLEGE",10003558,null,null,null,null,null,null,10003491,"JOHN LEGGOTT SIXTH FORM COLLEGE",10003491,"Grant"]
["KENT COUNTY COUNCIL",10003570,null,null,null,null,null,null,10003558,"KENDAL COLLEGE",10003558,"Grant"]
["KINGSTON UPON HULL CITY COUNCIL",10003198,null,null,null,null,null,null,10003570,"KENT COUNTY COUNCIL",10003570,"Grant"]
["KIRKLEES COLLEGE",10003189,null,null,null,null,null,null,10003198,"KINGSTON UPON HULL CITY COUNCIL",10003198,"Grant"]
["KNOWSLEY METROPOLITAN BOROUGH COUNCIL",10003709,null,null,null,null,null,null,10003189,"KIRKLEES COLLEGE",10003189,"Grant"]
["LAKES COLLEGE WEST CUMBRIA",10003753,null,null,null,null,null,null,10003709,"KNOWSLEY METROPOLITAN BOROUGH COUNCIL",10003709,"Grant"]
["LANCASTER AND MORECAMBE COLLEGE",10003768,null,null,null,null,null,null,10003753,"LAKES COLLEGE WEST CUMBRIA",10003753,"Grant"]
["LEEDS CITY COUNCIL",10003853,null,null,null,null,null,null,10003768,"LANCASTER AND MORECAMBE COLLEGE",10003768,"Grant"]
["LEEDS COLLEGE OF BUILDING",10003855,null,null,null,null,null,null,10003853,"LEEDS CITY COUNCIL",10003853,"Grant"]
["LEICESTER CITY COUNCIL",10003866,null,null,null,null,null,null,10003855,"LEEDS COLLEGE OF BUILDING",10003855,"Grant"]
["LEICESTER COLLEGE",10003867,null,null,null,null,null,null,10003866,"LEICESTER CITY COUNCIL",10003866,"Grant"]
["LEICESTERSHIRE COUNTY COUNCIL",10003872,null,null,null,null,null,null,10003867,"LEICESTER COLLEGE",10003867,"Grant"]
["LET ME PLAY LIMITED",10040664,null,null,null,null,null,null,10003872,"LEICESTERSHIRE COUNTY COUNCIL",10003872,"Grant"]
["LINCOLN COLLEGE",10003928,null,null,null,null,null,null,10040664,"LET ME PLAY LIMITED",10040664,"Contract for Services"]
["LINCOLNSHIRE COUNTY COUNCIL",10003932,null,null,null,null,null,null,10003928,"LINCOLN COLLEGE",10003928,"Grant"]
["LIVERPOOL CITY COUNCIL",10003954,null,null,null,null,null,null,10003932,"LINCOLNSHIRE COUNTY COUNCIL",10003932,"Grant"]
["LOGISTICS SKILLS & CONSULTANCY LTD",10039742,null,null,null,null,null,null,10003954,"LIVERPOOL CITY COUNCIL",10003954,"Grant"]
["LONDON SOUTH EAST COLLEGES",10000948,null,null,null,null,null,null,10039742,"LOGISTICS SKILLS & CONSULTANCY LTD",10039742,"Contract for Services"]
["LOUGHBOROUGH COLLEGE",10004112,null,null,null,null,null,null,10000948,"LONDON SOUTH EAST COLLEGES",10000948,"Grant"]
["LTE GROUP",10023139,null,null,null,null,null,null,10004112,"LOUGHBOROUGH COLLEGE",10004112,"Grant"]
["LUMINATE EDUCATION GROUP",10024962,null,null,null,null,null,null,10023139,"LTE GROUP",10023139,"Grant"]
["LUTON BOROUGH COUNCIL",10004124,null,null,null,null,null,null,10024962,"LUMINATE EDUCATION GROUP",10024962,"Grant"]
["MACCLESFIELD COLLEGE",10004144,null,null,null,null,null,null,10004124,"LUTON BOROUGH COUNCIL",10004124,"Grant"]
["MANCHESTER CITY COUNCIL",10004175,null,null,null,null,null,null,10004144,"MACCLESFIELD COLLEGE",10004144,"Grant"]
["MARTINEX LIMITED",10000994,null,null,null,null,null,null,10004175,"MANCHESTER CITY COUNCIL",10004175,"Grant"]
["MARY WARD SETTLEMENT",10007875,null,null,null,null,null,null,10000994,"MARTINEX LIMITED",10000994,"Contract for Services"]
["MEDWAY COUNCIL",10004285,null,null,null,null,null,null,10007875,"MARY WARD SETTLEMENT",10007875,"Grant"]
["MERTON BOROUGH COUNCIL",10003996,null,null,null,null,null,null,10004285,"MEDWAY COUNCIL",10004285,"Grant"]
["MIDDLESBROUGH COLLEGE",10004344,null,null,null,null,null,null,10003996,"MERTON BOROUGH COUNCIL",10003996,"Grant"]
["MIDDLESBROUGH COUNCIL",10004343,null,null,null,null,null,null,10004344,"MIDDLESBROUGH COLLEGE",10004344,"Grant"]
["MID-KENT COLLEGE",10004340,null,null,null,null,null,null,10004343,"MIDDLESBROUGH COUNCIL",10004343,"Grant"]
["MILTON KEYNES COLLEGE",10004375,null,null,null,null,null,null,10004340,"MID-KENT COLLEGE",10004340,"Grant"]
["MILTON KEYNES COUNCIL",10004376,null,null,null,null,null,null,10004375,"MILTON KEYNES COLLEGE",10004375,"Grant"]
["MORLEY COLLEGE LIMITED",10004432,null,null,null,null,null,null,10004376,"MILTON KEYNES COUNCIL",10004376,"Grant"]
["MOULTON COLLEGE",10004442,null,null,null,null,null,null,10004432,"MORLEY COLLEGE LIMITED",10004432,"Grant"]
["MYERSCOUGH COLLEGE",10004478,null,null,null,null,null,null,10004442,"MOULTON COLLEGE",10004442,"Grant"]
["NCG",10004599,null,null,null,null,null,null,10004478,"MYERSCOUGH COLLEGE",10004478,"Grant"]
["NELSON AND COLNE COLLEGE",10004552,null,null,null,null,null,null,10004599,"NCG",10004599,"Grant"]
["NEW CITY COLLEGE",10006963,null,null,null,null,null,null,10004552,"NELSON AND COLNE COLLEGE",10004552,"Grant"]
["NEW COLLEGE DURHAM",10004576,null,null,null,null,null,null,10006963,"NEW CITY COLLEGE",10006963,"Grant"]
["NEW COLLEGE SWINDON",10004579,null,null,null,null,null,null,10004576,"NEW COLLEGE DURHAM",10004576,"Grant"]
["NEWBURY COLLEGE",10004596,null,null,null,null,null,null,10004579,"NEW COLLEGE SWINDON",10004579,"Grant"]
["NEWCASTLE AND STAFFORD COLLEGES GROUP",10004603,null,null,null,null,null,null,10004596,"NEWBURY COLLEGE",10004596,"Grant"]
["NEWCASTLE UPON TYNE CITY COUNCIL",10004601,null,null,null,null,null,null,10004603,"NEWCASTLE AND STAFFORD COLLEGES GROUP",10004603,"Grant"]
["NEWHAM COLLEGE OF FURTHER EDUCATION",10004607,null,null,null,null,null,null,10004601,"NEWCASTLE UPON TYNE CITY COUNCIL",10004601,"Grant"]
["NEWHAM LONDON BOROUGH COUNCIL",10003997,null,null,null,null,null,null,10004607,"NEWHAM COLLEGE OF FURTHER EDUCATION",10004607,"Grant"]
["NORFOLK COUNTY COUNCIL",10004657,null,null,null,null,null,null,10003997,"NEWHAM LONDON BOROUGH COUNCIL",10003997,"Grant"]
["NORTH EAST SURREY COLLEGE OF TECHNOLOGY (NESCOT)",10004686,null,null,null,null,null,null,10004657,"NORFOLK COUNTY COUNCIL",10004657,"Grant"]
["NORTH HERTFORDSHIRE COLLEGE",10004690,null,null,null,null,null,null,10004686,"NORTH EAST SURREY COLLEGE OF TECHNOLOGY (NESCOT)",10004686,"Grant"]
["NORTH KENT COLLEGE",10004721,null,null,null,null,null,null,10004690,"NORTH HERTFORDSHIRE COLLEGE",10004690,"Grant"]
["NORTH LINCOLNSHIRE COUNCIL",10004694,null,null,null,null,null,null,10004721,"NORTH KENT COLLEGE",10004721,"Grant"]
["NORTH NORTHAMPTONSHIRE COUNCIL",10004733,null,null,null,null,null,null,10004694,"NORTH LINCOLNSHIRE COUNCIL",10004694,"Grant"]
["NORTH STAFFORDSHIRE ENGINEERING GROUP TRAINING ASSOCIATION LIMITED",10028012,null,null,null,null,null,null,10004733,"NORTH NORTHAMPTONSHIRE COUNCIL",10004733,"Grant"]
["NORTH TYNESIDE METROPOLITAN BOROUGH COUNCIL",10004714,null,null,null,null,null,null,10028012,"NORTH STAFFORDSHIRE ENGINEERING GROUP TRAINING ASSOCIATION LIMITED",10028012,"Contract for Services"]
["NORTH WARWICKSHIRE AND SOUTH LEICESTERSHIRE COLLEGE",10004718,null,null,null,null,null,null,10004714,"NORTH TYNESIDE METROPOLITAN BOROUGH COUNCIL",10004714,"Grant"]
["NORTH YORKSHIRE COUNTY COUNCIL",10004727,null,null,null,null,null,null,10004718,"NORTH WARWICKSHIRE AND SOUTH LEICESTERSHIRE COLLEGE",10004718,"Grant"]
["NORTHAMPTON COLLEGE",10007011,null,null,null,null,null,null,10004727,"NORTH YORKSHIRE COUNTY COUNCIL",10004727,"Grant"]
["NORTHERN COLLEGE FOR RESIDENTIAL ADULT EDUCATION LIMITED(THE)",10004739,null,null,null,null,null,null,10007011,"NORTHAMPTON COLLEGE",10007011,"Grant"]
["NOTTINGHAM CITY COUNCIL",10004791,null,null,null,null,null,null,10004739,"NORTHERN COLLEGE FOR RESIDENTIAL ADULT EDUCATION LIMITED(THE)",10004739,"Grant"]
["NOTTINGHAM COLLEGE",10004577,null,null,null,null,null,null,10004791,"NOTTINGHAM CITY COUNCIL",10004791,"Grant"]
["NOTTINGHAM TRENT UNIVERSITY",10004797,null,null,null,null,null,null,10004577,"NOTTINGHAM COLLEGE",10004577,"Grant"]
["NOTTINGHAMSHIRE COUNTY COUNCIL",10004801,null,null,null,null,null,null,10004797,"NOTTINGHAM TRENT UNIVERSITY",10004797,"Grant"]
["OAKLANDS COLLEGE",10004835,null,null,null,null,null,null,10004801,"NOTTINGHAMSHIRE COUNTY COUNCIL",10004801,"Grant"]
["ORCHARD HILL COLLEGE",10054747,null,null,null,null,null,null,10004835,"OAKLANDS COLLEGE",10004835,"Grant"]
["PATHWAY FIRST LIMITED",10021793,null,null,null,null,null,null,10054747,"ORCHARD HILL COLLEGE",10054747,"Grant"]
["PETER SYMONDS COLLEGE",10005072,null,null,null,null,null,null,10021793,"PATHWAY FIRST LIMITED",10021793,"Contract for Services"]
["PETERBOROUGH CITY COUNCIL",10005074,null,null,null,null,null,null,10005072,"PETER SYMONDS COLLEGE",10005072,"Grant"]
["PETROC",10004676,null,null,null,null,null,null,10005074,"PETERBOROUGH CITY COUNCIL",10005074,"Grant"]
["PET-XI TRAINING LIMITED",10021539,null,null,null,null,null,null,10004676,"PETROC",10004676,"Grant"]
["PGL TRAINING (PLUMBING) LIMITED",10008426,null,null,null,null,null,null,10021539,"PET-XI TRAINING LIMITED",10021539,"Contract for Services"]
["PHX TRAINING LIMITED",10012179,null,null,null,null,null,null,10008426,"PGL TRAINING (PLUMBING) LIMITED",10008426,"Contract for Services"]
["PLUMPTON COLLEGE",10005124,null,null,null,null,null,null,10012179,"PHX TRAINING LIMITED",10012179,"Contract for Services"]
["PLYMOUTH CITY COUNCIL",10005126,null,null,null,null,null,null,10005124,"PLUMPTON COLLEGE",10005124,"Grant"]
["PORTSLADE ALDRIDGE COMMUNITY ACADEMY",10034944,null,null,null,null,null,null,10005126,"PLYMOUTH CITY COUNCIL",10005126,"Grant"]
["PORTSMOUTH CITY COUNCIL",10005157,null,null,null,null,null,null,10034944,"PORTSLADE ALDRIDGE COMMUNITY ACADEMY",10034944,"Grant"]
["PRESTON COLLEGE",10005200,null,null,null,null,null,null,10005157,"PORTSMOUTH CITY COUNCIL",10005157,"Grant"]
["PREVISTA LTD",10005204,null,null,null,null,null,null,10005200,"PRESTON COLLEGE",10005200,"Grant"]
["PRIESTLEY COLLEGE",10063846,null,null,null,null,null,null,10005204,"PREVISTA LTD",10005204,"Contract for Services"]
["PRIOR PURSGLOVE AND STOCKTON SIXTH FORM COLLEGE",10065941,null,null,null,null,null,null,10063846,"PRIESTLEY COLLEGE",10063846,"Grant"]
["PROFESSIONAL DEVELOPMENT AND TRAINING LTD",10044419,null,null,null,null,null,null,10065941,"PRIOR PURSGLOVE AND STOCKTON SIXTH FORM COLLEGE",10065941,"Grant"]
["QDOS TRAINING LIMITED",10021018,null,null,null,null,null,null,10044419,"PROFESSIONAL DEVELOPMENT AND TRAINING LTD",10044419,"Contract for Services"]
["QUEEN MARY'S COLLEGE",10065473,null,null,null,null,null,null,10021018,"QDOS TRAINING LIMITED",10021018,"Contract for Services"]
["RAVENSBOURNE UNIVERSITY LONDON",10005389,null,null,null,null,null,null,10065473,"QUEEN MARY'S COLLEGE",10065473,"Grant"]
["READING BOROUGH COUNCIL",10005398,null,null,null,null,null,null,10005389,"RAVENSBOURNE UNIVERSITY LONDON",10005389,"Grant"]
["REALISE LEARNING AND EMPLOYMENT LIMITED",10034309,null,null,null,null,null,null,10005398,"READING BOROUGH COUNCIL",10005398,"Grant"]
["REASEHEATH COLLEGE",10005404,null,null,null,null,null,null,10034309,"REALISE LEARNING AND EMPLOYMENT LIMITED",10034309,"Contract for Services"]
["REDBRIDGE LONDON BOROUGH COUNCIL",10005412,null,null,null,null,null,null,10005404,"REASEHEATH COLLEGE",10005404,"Grant"]
["RESOURCES (N E) LIMITED",10024686,null,null,null,null,null,null,10005412,"REDBRIDGE LONDON BOROUGH COUNCIL",10005412,"Grant"]
["RICHARD HUISH COLLEGE",10089242,null,null,null,null,null,null,10024686,"RESOURCES (N E) LIMITED",10024686,"Contract for Services"]
["RICHARD TAUNTON SIXTH FORM COLLEGE",10065834,null,null,null,null,null,null,10089242,"RICHARD HUISH COLLEGE",10089242,"Grant"]
["RICHMOND AND HILLCROFT ADULT AND COMMUNITY COLLEGE",10003088,null,null,null,null,null,null,10065834,"RICHARD TAUNTON SIXTH FORM COLLEGE",10065834,"Grant"]
["RIVERSIDE COLLEGE",10002863,null,null,null,null,null,null,10003088,"RICHMOND AND HILLCROFT ADULT AND COMMUNITY COLLEGE",10003088,"Grant"]
["RNN GROUP",10005534,null,null,null,null,null,null,10002863,"RIVERSIDE COLLEGE",10002863,"Grant"]
["ROYAL BOROUGH OF GREENWICH",10003990,null,null,null,null,null,null,10005534,"RNN GROUP",10005534,"Grant"]
["ROYAL BOROUGH OF KINGSTON UPON THAMES",10005549,null,null,null,null,null,null,10003990,"ROYAL BOROUGH OF GREENWICH",10003990,"Grant"]
["RUNSHAW COLLEGE",10005575,null,null,null,null,null,null,10005549,"ROYAL BOROUGH OF KINGSTON UPON THAMES",10005549,"Grant"]
["RUSKIN COLLEGE",10005583,null,null,null,null,null,null,10005575,"RUNSHAW COLLEGE",10005575,"Grant"]
["RUTLAND COUNTY COUNCIL",10005586,null,null,null,null,null,null,10005583,"RUSKIN COLLEGE",10005583,"Grant"]
["SALFORD CITY COLLEGE",10005032,null,null,null,null,null,null,10005586,"RUTLAND COUNTY COUNCIL",10005586,"Grant"]
["SANDWELL COLLEGE",10005669,null,null,null,null,null,null,10005032,"SALFORD CITY COLLEGE",10005032,"Grant"]
["SANDWELL METROPOLITAN BOROUGH COUNCIL",10005671,null,null,null,null,null,null,10005669,"SANDWELL COLLEGE",10005669,"Grant"]
["SAPPHIRE LOGISTICS & CONSULTANCY LTD",10082452,null,null,null,null,null,null,10005671,"SANDWELL METROPOLITAN BOROUGH COUNCIL",10005671,"Grant"]
["SCCU LTD",10036794,null,null,null,null,null,null,10082452,"SAPPHIRE LOGISTICS & CONSULTANCY LTD",10082452,"Contract for Services"]
["SCL EDUCATION & TRAINING LIMITED",10043208,null,null,null,null,null,null,10036794,"SCCU LTD",10036794,"Contract for Services"]
["SHEFFIELD CITY COUNCIL",10002244,null,null,null,null,null,null,10043208,"SCL EDUCATION & TRAINING LIMITED",10043208,"Contract for Services"]
["SHEFFIELD COLLEGE, THE",10005788,null,null,null,null,null,null,10002244,"SHEFFIELD CITY COUNCIL",10002244,"Grant"]
["SHIPLEY COLLEGE",10005810,null,null,null,null,null,null,10005788,"SHEFFIELD COLLEGE, THE",10005788,"Grant"]
["SHREWSBURY COLLEGES GROUP",10005822,null,null,null,null,null,null,10005810,"SHIPLEY COLLEGE",10005810,"Grant"]
["SKILLS MAX ACADEMY LIMITED",10037689,null,null,null,null,null,null,10005822,"SHREWSBURY COLLEGES GROUP",10005822,"Grant"]
["SLOUGH BOROUGH COUNCIL",10005916,null,null,null,null,null,null,10037689,"SKILLS MAX ACADEMY LIMITED",10037689,"Contract for Services"]
["SOLIHULL COLLEGE AND UNIVERSITY CENTRE",10005946,null,null,null,null,null,null,10005916,"SLOUGH BOROUGH COUNCIL",10005916,"Grant"]
["SOMERSET COUNCIL",10005959,null,null,null,null,null,null,10005946,"SOLIHULL COLLEGE AND UNIVERSITY CENTRE",10005946,"Grant"]
["SOUTH & CITY COLLEGE BIRMINGHAM",10005967,null,null,null,null,null,null,10005959,"SOMERSET COUNCIL",10005959,"Grant"]
["SOUTH BANK COLLEGES",10003755,null,null,null,null,null,null,10005967,"SOUTH & CITY COLLEGE BIRMINGHAM",10005967,"Grant"]
["SOUTH DEVON COLLEGE",10005977,null,null,null,null,null,null,10003755,"SOUTH BANK COLLEGES",10003755,"Grant"]
["SOUTH ESSEX COLLEGE OF FURTHER AND HIGHER EDUCATION",10005981,null,null,null,null,null,null,10005977,"SOUTH DEVON COLLEGE",10005977,"Grant"]
["SOUTH GLOUCESTERSHIRE AND STROUD COLLEGE",10036143,null,null,null,null,null,null,10005981,"SOUTH ESSEX COLLEGE OF FURTHER AND HIGHER EDUCATION",10005981,"Grant"]
["SOUTH HAMPSHIRE COLLEGE GROUP",10007928,null,null,null,null,null,null,10036143,"SOUTH GLOUCESTERSHIRE AND STROUD COLLEGE",10036143,"Grant"]
["SOUTH STAFFORDSHIRE COLLEGE",10023526,null,null,null,null,null,null,10007928,"SOUTH HAMPSHIRE COLLEGE GROUP",10007928,"Grant"]
["SOUTH THAMES COLLEGES GROUP",10003674,null,null,null,null,null,null,10023526,"SOUTH STAFFORDSHIRE COLLEGE",10023526,"Grant"]
["SOUTH TYNESIDE COUNCIL",10006000,null,null,null,null,null,null,10003674,"SOUTH THAMES COLLEGES GROUP",10003674,"Grant"]
["SOUTHAMPTON CITY COUNCIL",10006021,null,null,null,null,null,null,10006000,"SOUTH TYNESIDE COUNCIL",10006000,"Grant"]
["SOUTHEND CITY COUNCIL",10006029,null,null,null,null,null,null,10006021,"SOUTHAMPTON CITY COUNCIL",10006021,"Grant"]
["SOUTHPORT EDUCATION GROUP",10006038,null,null,null,null,null,null,10006029,"SOUTHEND CITY COUNCIL",10006029,"Grant"]
["SPARSHOLT COLLEGE",10006050,null,null,null,null,null,null,10006038,"SOUTHPORT EDUCATION GROUP",10006038,"Grant"]
["ST HELENS COLLEGE",10006174,null,null,null,null,null,null,10006050,"SPARSHOLT COLLEGE",10006050,"Grant"]
["ST VINCENT COLLEGE",10065835,null,null,null,null,null,null,10006174,"ST HELENS COLLEGE",10006174,"Grant"]
["STAFFORDSHIRE COUNTY COUNCIL",10006296,null,null,null,null,null,null,10065835,"ST VINCENT COLLEGE",10065835,"Grant"]
["STANMORE COLLEGE",10009439,null,null,null,null,null,null,10006296,"STAFFORDSHIRE COUNTY COUNCIL",10006296,"Grant"]
["STOCKPORT METROPOLITAN BOROUGH COUNCIL",10006335,null,null,null,null,null,null,10009439,"STANMORE COLLEGE",10009439,"Grant"]
["STOCKTON-ON-TEES BOROUGH COUNCIL",10006337,null,null,null,null,null,null,10006335,"STOCKPORT METROPOLITAN BOROUGH COUNCIL",10006335,"Grant"]
["STOKE ON TRENT COLLEGE",10006349,null,null,null,null,null,null,10006337,"STOCKTON-ON-TEES BOROUGH COUNCIL",10006337,"Grant"]
["STOKE-ON-TRENT CITY COUNCIL",10001473,null,null,null,null,null,null,10006349,"STOKE ON TRENT COLLEGE",10006349,"Grant"]
["STRODE COLLEGE",10006378,null,null,null,null,null,null,10001473,"STOKE-ON-TRENT CITY COUNCIL",10001473,"Grant"]
["SUFFOLK COUNTY COUNCIL",10006399,null,null,null,null,null,null,10006378,"STRODE COLLEGE",10006378,"Grant"]
["SUFFOLK NEW COLLEGE",10006398,null,null,null,null,null,null,10006399,"SUFFOLK COUNTY COUNCIL",10006399,"Grant"]
["SUNDERLAND CITY METROPOLITAN BOROUGH COUNCIL",10006407,null,null,null,null,null,null,10006398,"SUFFOLK NEW COLLEGE",10006398,"Grant"]
["SURREY COUNTY COUNCIL",10006426,null,null,null,null,null,null,10006407,"SUNDERLAND CITY METROPOLITAN BOROUGH COUNCIL",10006407,"Grant"]
["SUTTON COLDFIELD TRAINING LIMITED",10023992,null,null,null,null,null,null,10006426,"SURREY COUNTY COUNCIL",10006426,"Grant"]
["SUTTON LONDON BOROUGH COUNCIL",10004000,null,null,null,null,null,null,10023992,"SUTTON COLDFIELD TRAINING LIMITED",10023992,"Contract for Services"]
["SWINDON BOROUGH COUNCIL",10006462,null,null,null,null,null,null,10004000,"SUTTON LONDON BOROUGH COUNCIL",10004000,"Grant"]
["TAMESIDE COLLEGE",10006494,null,null,null,null,null,null,10006462,"SWINDON BOROUGH COUNCIL",10006462,"Grant"]
["TEC PARTNERSHIP",10007938,null,null,null,null,null,null,10006494,"TAMESIDE COLLEGE",10006494,"Grant"]
["TECHNICAL PROFESSIONALS LIMITED",10058007,null,null,null,null,null,null,10007938,"TEC PARTNERSHIP",10007938,"Grant"]
["TELFORD COLLEGE",10006549,null,null,null,null,null,null,10058007,"TECHNICAL PROFESSIONALS LIMITED",10058007,"Contract for Services"]
["THAT NAIL PLACE LIMITED",10028007,null,null,null,null,null,null,10006549,"TELFORD COLLEGE",10006549,"Grant"]
["THE CITY LITERARY INSTITUTE",10001463,null,null,null,null,null,null,10028007,"THAT NAIL PLACE LIMITED",10028007,"Contract for Services"]
["THE CITY OF LIVERPOOL COLLEGE",10003955,null,null,null,null,null,null,10001463,"THE CITY LITERARY INSTITUTE",10001463,"Grant"]
["THE COLLEGE OF RICHARD COLLYER IN HORSHAM",10001550,null,null,null,null,null,null,10003955,"THE CITY OF LIVERPOOL COLLEGE",10003955,"Grant"]
["THE COLLEGE OF WEST ANGLIA",10007916,null,null,null,null,null,null,10001550,"THE COLLEGE OF RICHARD COLLYER IN HORSHAM",10001550,"Grant"]
["THE CONSTRUCTION SKILLS PEOPLE LTD",10030802,null,null,null,null,null,null,10007916,"THE COLLEGE OF WEST ANGLIA",10007916,"Grant"]
["THE EDUCATION TRAINING COLLECTIVE",10006341,null,null,null,null,null,null,10030802,"THE CONSTRUCTION SKILLS PEOPLE LTD",10030802,"Contract for Services"]
["THE FORWARD TRUST",10029120,null,null,null,null,null,null,10006341,"THE EDUCATION TRAINING COLLECTIVE",10006341,"Grant"]
["THE HENLEY COLLEGE",10003011,null,null,null,null,null,null,10029120,"THE FORWARD TRUST",10029120,"Contract for Services"]
["THE MARINE SOCIETY AND SEA CADETS",10004204,null,null,null,null,null,null,10003011,"THE HENLEY COLLEGE",10003011,"Grant"]
["THE NORTHUMBERLAND COUNCIL",10004762,null,null,null,null,null,null,10004204,"THE MARINE SOCIETY AND SEA CADETS",10004204,"Grant"]
["THE OLDHAM COLLEGE",10006770,null,null,null,null,null,null,10004762,"THE NORTHUMBERLAND COUNCIL",10004762,"Grant"]
["THE PORTLAND TRAINING COMPANY LIMITED",10046979,null,null,null,null,null,null,10006770,"THE OLDHAM COLLEGE",10006770,"Grant"]
["THE SKILLS CENTRE LONDON LIMITED",10023042,null,null,null,null,null,null,10046979,"THE PORTLAND TRAINING COMPANY LIMITED",10046979,"Contract for Services"]
["THE SKILLS NETWORK LIMITED",10029308,null,null,null,null,null,null,10023042,"THE SKILLS CENTRE LONDON LIMITED",10023042,"Contract for Services"]
["THE SMB GROUP",10000952,null,null,null,null,null,null,10029308,"THE SKILLS NETWORK LIMITED",10029308,"Contract for Services"]
["THE TRAFFORD AND STOCKPORT COLLEGE GROUP",10005998,null,null,null,null,null,null,10000952,"THE SMB GROUP",10000952,"Grant"]
["THE TRAINING BROKERS LIMITED",10036106,null,null,null,null,null,null,10005998,"THE TRAFFORD AND STOCKPORT COLLEGE GROUP",10005998,"Grant"]
["THE WILTSHIRE COUNCIL",10007528,null,null,null,null,null,null,10036106,"THE TRAINING BROKERS LIMITED",10036106,"Contract for Services"]
["THE WINDSOR FOREST COLLEGES GROUP",10002107,null,null,null,null,null,null,10007528,"THE WILTSHIRE COUNCIL",10007528,"Grant"]
["THE WKCIC GROUP",10007455,null,null,null,null,null,null,10002107,"THE WINDSOR FOREST COLLEGES GROUP",10002107,"Grant"]
["THINK EMPLOYMENT LIMITED",10001013,null,null,null,null,null,null,10007455,"THE WKCIC GROUP",10007455,"Grant"]
["THREE DIMENSIONAL TRAINING LIMITED",10057616,null,null,null,null,null,null,10001013,"THINK EMPLOYMENT LIMITED",10001013,"Contract for Services"]
["THURROCK COUNCIL",10006907,null,null,null,null,null,null,10057616,"THREE DIMENSIONAL TRAINING LIMITED",10057616,"Contract for Services"]
["TLG BUSINESS SERVICES LIMITED",10045858,null,null,null,null,null,null,10006907,"THURROCK COUNCIL",10006907,"Grant"]
["TOWER HAMLETS LONDON BOROUGH COUNCIL",10006964,null,null,null,null,null,null,10045858,"TLG BUSINESS SERVICES LIMITED",10045858,"Contract for Services"]
["TRAINING STRATEGIES LTD.",10027873,null,null,null,null,null,null,10006964,"TOWER HAMLETS LONDON BOROUGH COUNCIL",10006964,"Grant"]
["TRIAGE CENTRAL LIMITED",10024836,null,null,null,null,null,null,10027873,"TRAINING STRATEGIES LTD.",10027873,"Contract for Services"]
["TRN (TRAIN) LTD.",10000082,null,null,null,null,null,null,10024836,"TRIAGE CENTRAL LIMITED",10024836,"Contract for Services"]
["TRURO AND PENWITH COLLEGE",10007063,null,null,null,null,null,null,10000082,"TRN (TRAIN) LTD.",10000082,"Contract for Services"]
["TWIN TRAINING INTERNATIONAL LIMITED",10007091,null,null,null,null,null,null,10007063,"TRURO AND PENWITH COLLEGE",10007063,"Grant"]
["TYNE COAST COLLEGE",10005999,null,null,null,null,null,null,10007091,"TWIN TRAINING INTERNATIONAL LIMITED",10007091,"Contract for Services"]
["UCKFIELD COLLEGE",10007111,null,null,null,null,null,null,10005999,"TYNE COAST COLLEGE",10005999,"Grant"]
["UNIFIED SEEVIC PALMER'S COLLEGE",10005736,null,null,null,null,null,null,10007111,"UCKFIELD COLLEGE",10007111,"Grant"]
["UNITED COLLEGES GROUP",10001476,null,null,null,null,null,null,10005736,"UNIFIED SEEVIC PALMER'S COLLEGE",10005736,"Grant"]
["UNIVERSITY COLLEGE BIRMINGHAM",10000712,null,null,null,null,null,null,10001476,"UNITED COLLEGES GROUP",10001476,"Grant"]
["UNIVERSITY FOR THE CREATIVE ARTS",10006427,null,null,null,null,null,null,10000712,"UNIVERSITY COLLEGE BIRMINGHAM",10000712,"Grant"]
["UNIVERSITY OF DERBY",10007851,null,null,null,null,null,null,10006427,"UNIVERSITY FOR THE CREATIVE ARTS",10006427,"Grant"]
["UNIVERSITY OF LINCOLN",10007151,null,null,null,null,null,null,10007851,"UNIVERSITY OF DERBY",10007851,"Grant"]
["UNIVERSITY OF THE ARTS, LONDON",10007162,null,null,null,null,null,null,10007151,"UNIVERSITY OF LINCOLN",10007151,"Grant"]
["VARNDEAN COLLEGE",10007212,null,null,null,null,null,null,10007162,"UNIVERSITY OF THE ARTS, LONDON",10007162,"Grant"]
["WAKEFIELD CITY COUNCIL",10007291,null,null,null,null,null,null,10007212,"VARNDEAN COLLEGE",10007212,"Grant"]
["WALSALL COLLEGE",10007315,null,null,null,null,null,null,10007291,"WAKEFIELD CITY COUNCIL",10007291,"Grant"]
["WALTHAM FOREST COLLEGE",10007321,null,null,null,null,null,null,10007315,"WALSALL COLLEGE",10007315,"Grant"]
["WALTHAM FOREST LONDON BOROUGH COUNCIL",10007322,null,null,null,null,null,null,10007321,"WALTHAM FOREST COLLEGE",10007321,"Grant"]
["WANDSWORTH LONDON BOROUGH COUNCIL",10004002,null,null,null,null,null,null,10007322,"WALTHAM FOREST LONDON BOROUGH COUNCIL",10007322,"Grant"]
["WARRINGTON & VALE ROYAL COLLEGE",10007339,null,null,null,null,null,null,10004002,"WANDSWORTH LONDON BOROUGH COUNCIL",10004002,"Grant"]
["WARWICKSHIRE COLLEGE",10007859,null,null,null,null,null,null,10007339,"WARRINGTON & VALE ROYAL COLLEGE",10007339,"Grant"]
["WARWICKSHIRE COUNTY COUNCIL",10007348,null,null,null,null,null,null,10007859,"WARWICKSHIRE COLLEGE",10007859,"Grant"]
["WAVERLEY BOROUGH COUNCIL",10008986,null,null,null,null,null,null,10007348,"WARWICKSHIRE COUNTY COUNCIL",10007348,"Grant"]
["WEST BERKSHIRE COUNCIL",10007398,null,null,null,null,null,null,10008986,"WAVERLEY BOROUGH COUNCIL",10008986,"Grant"]
["WEST HERTS COLLEGE",10007417,null,null,null,null,null,null,10007398,"WEST BERKSHIRE COUNCIL",10007398,"Grant"]
["WEST NOTTINGHAMSHIRE COLLEGE",10007427,null,null,null,null,null,null,10007417,"WEST HERTS COLLEGE",10007417,"Grant"]
["WEST SUFFOLK COLLEGE",10007431,null,null,null,null,null,null,10007427,"WEST NOTTINGHAMSHIRE COLLEGE",10007427,"Grant"]
["WEST SUSSEX COUNTY COUNCIL",10007432,null,null,null,null,null,null,10007431,"WEST SUFFOLK COLLEGE",10007431,"Grant"]
["WEST THAMES COLLEGE",10007434,null,null,null,null,null,null,10007432,"WEST SUSSEX COUNTY COUNCIL",10007432,"Grant"]
["WESTMINSTER CITY COUNCIL",10001464,null,null,null,null,null,null,10007434,"WEST THAMES COLLEGE",10007434,"Grant"]
["WESTMORLAND AND FURNESS COUNCIL",10091806,null,null,null,null,null,null,10001464,"WESTMINSTER CITY COUNCIL",10001464,"Grant"]
["WESTON COLLEGE OF FURTHER AND HIGHER EDUCATION",10007459,null,null,null,null,null,null,10091806,"WESTMORLAND AND FURNESS COUNCIL",10091806,"Grant"]
["WEYMOUTH COLLEGE",10007469,null,null,null,null,null,null,10007459,"WESTON COLLEGE OF FURTHER AND HIGHER EDUCATION",10007459,"Grant"]
["WIGAN AND LEIGH COLLEGE",10007500,null,null,null,null,null,null,10007469,"WEYMOUTH COLLEGE",10007469,"Grant"]
["WILBERFORCE COLLEGE",10007503,null,null,null,null,null,null,10007500,"WIGAN AND LEIGH COLLEGE",10007500,"Grant"]
["WILTSHIRE COLLEGE AND UNIVERSITY CENTRE",10007527,null,null,null,null,null,null,10007503,"WILBERFORCE COLLEGE",10007503,"Grant"]
["WIRRAL METROPOLITAN COLLEGE",10007553,null,null,null,null,null,null,10007527,"WILTSHIRE COLLEGE AND UNIVERSITY CENTRE",10007527,"Grant"]
["WOKING COLLEGE",10065150,null,null,null,null,null,null,10007553,"WIRRAL METROPOLITAN COLLEGE",10007553,"Grant"]
["WOKINGHAM COUNCIL",10007567,null,null,null,null,null,null,10065150,"WOKING COLLEGE",10065150,"Grant"]
["WOLVERHAMPTON CITY COUNCIL",10007576,null,null,null,null,null,null,10007567,"WOKINGHAM COUNCIL",10007567,"Grant"]
["WORCESTER SIXTH FORM COLLEGE",10065366,null,null,null,null,null,null,10007576,"WOLVERHAMPTON CITY COUNCIL",10007576,"Grant"]
["WORCESTERSHIRE COUNTY COUNCIL",10007623,null,null,null,null,null,null,10065366,"WORCESTER SIXTH FORM COLLEGE",10065366,"Grant"]
["WORKERS' EDUCATIONAL ASSOCIATION",10007364,null,null,null,null,null,null,10007623,"WORCESTERSHIRE COUNTY COUNCIL",10007623,"Grant"]
["WORKING MEN'S COLLEGE CORPORATION",10007636,null,null,null,null,null,null,10007364,"WORKERS' EDUCATIONAL ASSOCIATION",10007364,"Grant"]
["WORKPAYS LIMITED",10037289,null,null,null,null,null,null,10007636,"WORKING MEN'S COLLEGE CORPORATION",10007636,"Grant"]
["WQE AND REGENT COLLEGE GROUP",10007671,null,null,null,null,null,null,10037289,"WORKPAYS LIMITED",10037289,"Contract for Services"]
["WRITTLE COLLEGE LIMITED",10094574,null,null,null,null,null,null,10007671,"WQE AND REGENT COLLEGE GROUP",10007671,"Grant"]
["YEOVIL COLLEGE",10007696,null,null,null,null,null,null,10094574,"WRITTLE COLLEGE LIMITED",10094574,"Grant"]
["YORK COLLEGE",10007709,null,null,null,null,null,null,10007696,"YEOVIL COLLEGE",10007696,"Grant"]
[null,null,null,null,null,null,null,null,10007709,"YORK COLLEGE",10007709,"Grant"]

{"sheet":"Summary","index":7,"n_rows":10,"n_cols":18,"rows_kept":10,"cut":false,"hidden":true,"merged":[]}
["First time"]
["Provider Name","UKPRN","Request type","Funding stream","Do you currently hold an ESFA funded AEB allocation?","Is this request for direct delivery or subcontracted?","Value","Volume","Q1","Q2","Q3","Q4","Name","Position in Organisation","Date of Request","Authority"]
[{"$f":"'COMPLETE ME FIRST'!D20:D20","v":0},{"$f":"'COMPLETE ME FIRST'!D22","v":""},{"$f":"'COMPLETE ME FIRST'!D24:D24","v":0},{"$f":"'COMPLETE ME FIRST'!D26:D26","v":0},{"$f":"'First time request'!H17","v":0},{"$f":"'First time request'!H18","v":0},{"$f":"'First time request'!D23","v":0},{"$f":"'First time request'!D24","v":0},{"$f":"'First time request'!B35","v":0},{"$f":"'First time request'!B39","v":0},{"$f":"'First time request'!#REF!","v":{"$error":"#REF!"}},{"$f":"'First time request'!B43","v":0},{"$f":"'First time request'!C51","v":0},{"$f":"'First time request'!C53","v":0},{"$f":"'First time request'!C55","v":"00:00:00"},{"$f":"'First time request'!J49","v":"✖"}]
[]
[]
[]
[]
["Top Up"]
["Provider Name","UKPRN","Request type","Funding stream","Do you currently hold an ESFA funded AEB allocation?","Is this request for direct delivery or subcontracted?","Current Value £","Request £","New Value £","Volume","Q1","Q2","Q3","Q4","Name","Position in Organisation","Date of Request","Authority"]
[{"$f":"'COMPLETE ME FIRST'!D20:D20","v":0},{"$f":"'COMPLETE ME FIRST'!D22","v":""},{"$f":"'COMPLETE ME FIRST'!D24:D24","v":0},{"$f":"'COMPLETE ME FIRST'!D26:D26","v":0},{"$f":"'Top Up'!H17","v":0},{"$f":"'Top Up'!H18","v":0},{"$f":"'Top Up'!D23","v":0},{"$f":"'Top Up'!D24","v":0},{"$f":"'Top Up'!D25","v":0},{"$f":"'Top Up'!D26","v":0},{"$f":"'Top Up'!B37","v":0},{"$f":"'Top Up'!B41","v":0},{"$f":"'Top Up'!#REF!","v":{"$error":"#REF!"}},{"$f":"'Top Up'!B45","v":0},{"$f":"'Top Up'!C53","v":0},{"$f":"'Top Up'!C55","v":0},{"$f":"'Top Up'!C57","v":"00:00:00"},{"$f":"'Top Up'!J51","v":"✖"}]